fUSD/lending_fUSD_20260202
["ID","MTS","AMOUNT","RATE_DAILY","PERIOD"]
[404294393,1770041443348,-500.0,0.00013698,2]
[404294394,1770041443358,-500.0,0.00013698,2]
[404294395,1770041443367,-499.73386374,0.00013698,2]
[404294396,1770041443379,-2666.0,0.00013735,2]
[404294397,1770041443390,-2666.0,0.0001379,2]
[404294398,1770041443399,-26483.7765009,0.00013836,2]
[404294399,1770041443407,-2666.0,0.00013844,2]
[404294400,1770041443417,-2667.61609587,0.00013899,2]
[404294401,1770041443425,-500.0,0.00013902,2]
[404294402,1770041443434,-255.0,0.00013903,2]
[404294403,1770041443443,-295.08,0.00013904,2]
[404294404,1770041443452,-332.57,0.00013913,2]
[404294405,1770041443461,-500.0,0.00013973,2]
[404294406,1770041443470,-500.0,0.00013973,2]
[404294407,1770041443479,-607.15821099,0.00013973,2]
[404294408,1770041443489,-500.0,0.00013973,2]
[404294409,1770041443498,-500.0,0.00013973,2]
[404294410,1770041443507,-500.0,0.00013973,2]
[404294411,1770041443516,-500.0,0.00013973,2]
[404294412,1770041443525,-177.72668829,0.00013973,2]
[404294413,1770041443535,-500.0,0.00013973,2]
[404294414,1770041443544,-500.0,0.00013973,2]
[404294415,1770041443553,-500.0,0.00013973,2]
[404294416,1770041443562,-500.0,0.00013973,2]
[404294417,1770041443571,-500.125501,0.00013973,2]
[404294418,1770041443580,-500.0,0.00013973,2]
[404294419,1770041443589,-501.73498825,0.00013973,2]
[404294420,1770041443598,-500.0,0.00013973,2]
[404294421,1770041443607,-500.0,0.00013973,2]
[404294422,1770041443616,-169.68447442,0.00013973,2]
[404294423,1770041443626,-500.72885739,0.00013973,2]
[404294424,1770041443636,-500.29932885,0.00013973,2]
[404294425,1770041443645,-166.83057246,0.00013973,2]
[404294426,1770041443654,-500.25858274,0.00013973,2]
[404294427,1770041443664,-500.0,0.00013973,2]
[404294428,1770041443673,-500.0,0.00013973,2]
[404294429,1770041443683,-500.0,0.00013973,2]
[404294430,1770041443692,-500.0,0.00013973,2]
[404294431,1770041443701,-500.0,0.00013973,2]
[404294432,1770041443710,-501.63214179,0.00013973,2]
[404294433,1770041443720,-217.67941742,0.00013973,2]
[404294434,1770041443729,-500.0,0.00013973,2]
[404294435,1770041443739,-500.0,0.00013973,2]
[404294436,1770041443748,-500.0,0.00013973,2]
[404294437,1770041443757,-500.0,0.00013973,2]
[404294438,1770041443766,-500.0,0.00013973,2]
[404294439,1770041443774,-500.0,0.00013973,2]
[404294440,1770041443784,-500.0,0.00013973,2]
[404294441,1770041443793,-166.41048115,0.00013973,2]
[404294442,1770041443802,-500.0,0.00013973,2]
[404294443,1770041443810,-500.0,0.00013973,2]
[404294444,1770041443819,-503.39541784,0.00013973,2]
[404294445,1770041443829,-781.37908532,0.0001403,2]
[404294446,1770041443838,-2307.14267202,0.00014078,2]
[404294447,1770041443846,-786.92991262,0.00014214,2]
[404294448,1770041443855,-1000.0,0.00014264,2]
[404294449,1770041443864,-26483.7765009,0.00014383,2]
[404294450,1770041443873,-1000.0,0.00014396,2]
[404294451,1770041443882,-500.0,0.0001445,2]
[404294452,1770041443892,-2351.0,0.00014496,2]
[404294453,1770041443901,-1371.88,0.00014501,2]
[404294454,1770041443910,-7287.74,0.00014504,2]
[404294455,1770041443919,-9999.99,0.00014504,2]
[404294456,1770041443929,-963.7080185,0.00014521,2]
[404294457,1770041443938,-1000.0,0.00014521,2]
[404294458,1770041443948,-1000.0,0.00014521,2]
[404294459,1770041443957,-1000.0,0.00014521,2]
[404294460,1770041443966,-771.49477999,0.00014521,2]
[404294461,1770041443975,-1000.0,0.00014521,2]
[404294462,1770041443985,-445.7560689,0.00014521,2]
[404294463,1770041443995,-1000.0,0.00014521,2]
[404294464,1770041444003,-1000.0,0.00014521,2]
[404294465,1770041444013,-1000.0,0.00014521,2]
[404294466,1770041444023,-1000.0,0.00014521,2]
[404294467,1770041444032,-1000.0,0.00014521,2]
[404294468,1770041444042,-1000.0,0.00014521,2]
[404294469,1770041444051,-1000.0,0.00014521,2]
[404294470,1770041444061,-614.32879488,0.00014521,2]
[404294471,1770041444071,-1000.0,0.00014521,2]
[404294472,1770041444080,-1000.0,0.00014521,2]
[404294473,1770041444089,-1000.0,0.00014521,2]
[404294474,1770041444099,-500.0,0.00014521,2]
[404294475,1770041444109,-500.80142863,0.00014521,2]
[404294476,1770041444119,-1000.0,0.00014521,2]
[404294477,1770041444129,-1000.0,0.00014521,2]
[404294478,1770041444138,-1000.0,0.00014521,2]
[404294479,1770041444147,-631.73,0.00014557,2]
[404294481,1770041444156,-332.57,0.00014609,2]
[404294483,1770041444165,-151.0,0.00014717,2]
[404294484,1770041444174,-151.0,0.00014845,2]
[404294485,1770041444183,-26483.7765009,0.00014931,2]
[404294486,1770041444192,-786.92991262,0.00014951,2]
[404294487,1770041444202,-549.54,0.00014962,2]
[404294488,1770041444211,-500.0,0.00014998,2]
[404294489,1770041444221,-250.0,0.00015,2]
[404294490,1770041444230,-1600.0,0.00015013,2]
[404294491,1770041444239,-1500.0,0.00015068,2]
[404294492,1770041444256,-845.5316297,0.00015068,2]
[404294493,1770041444266,-1503.29314635,0.00015068,2]
[404294494,1770041444276,-812.92067855,0.00015068,2]
[404294495,1770041444288,-522.05134598,0.00015068,2]
[404294496,1770041444302,-1500.0,0.00015068,2]
[404294497,1770041444324,-917.56745658,0.00015068,2]
[404294498,1770041444335,-1500.0,0.00015068,2]
[404294499,1770041444351,-407.76648186,0.00015068,2]
[404294500,1770041444363,-504.60147349,0.00015068,2]
[404294501,1770041444373,-1500.0,0.00015068,2]
[404294502,1770041444589,-679.20533301,0.00015068,2]
[404294503,1770041444599,-327.55137692,0.00015068,2]
[404294504,1770041444612,-1502.08630152,0.00015068,2]
[404294505,1770041444624,-1503.26586101,0.00015068,2]
[404294506,1770041444635,-151.0,0.00015072,2]
[404294507,1770041444646,-433.0,0.00015094,2]
[404294508,1770041444659,-500.0,0.00015129,2]
[404294509,1770041444669,-868.9,0.00015144,2]
[404294510,1770041444679,-151.0,0.00015185,2]
[404294511,1770041444690,-151.0,0.00015185,2]
[404294512,1770041444701,-151.0,0.00015189,2]
[404294513,1770041444711,-151.0,0.00015189,2]
[404294514,1770041444723,-151.0,0.00015191,2]
[404294515,1770041444733,-151.0,0.00015191,2]
[404294516,1770041444743,-151.0,0.00015191,2]
[404294517,1770041444755,-151.0,0.00015191,2]
[404294518,1770041444766,-2307.14267202,0.00015243,2]
[404294519,1770041444777,-500.0,0.0001526,2]
[404294520,1770041444787,-332.57,0.00015305,2]
[404294521,1770041444797,-781.37908532,0.0001532,2]
[404294522,1770041444807,-708.12663749,0.0001532,2]
[404294523,1770041444822,-480.55721143,0.0001532,2]
[404294524,1770041444835,-5612.54307386,0.0001532,2]
[404294525,1770041444846,-10000.0,0.00015373,2]
[404294526,1770041444857,-868.9,0.00015418,2]
[404294527,1770041444869,-1000.0,0.0001545,2]
[404294528,1770041444890,-500.0,0.00015473,2]
[404294529,1770041444901,-500.0,0.00015473,2]
[404294530,1770041444912,-500.0,0.00015473,2]
[404294531,1770041444926,-500.0,0.00015473,2]
[404294532,1770041444937,-160.20576125,0.00015473,2]
[404294533,1770041444948,-161.56165826,0.00015473,2]
[404294534,1770041444959,-500.0,0.00015473,2]
[404294535,1770041444971,-500.0,0.00015473,2]
[404294536,1770041444982,-500.0,0.00015473,2]
[404294537,1770041444993,-500.0,0.00015473,2]
[404294538,1770041445005,-500.0,0.00015473,2]
[404294539,1770041445017,-500.0,0.00015473,2]
[404294540,1770041445029,-162.00308214,0.00015473,2]
[404294541,1770041445040,-500.0,0.00015473,2]
[404294542,1770041445051,-614.02070577,0.00015473,2]
[404294543,1770041445060,-500.0,0.00015473,2]
[404294544,1770041445071,-276.31975293,0.00015473,2]
[404294545,1770041445081,-500.0,0.00015473,2]
[404294546,1770041445090,-598.12324011,0.00015473,2]
[404294547,1770041445099,-375.67609923,0.00015473,2]
[404294548,1770041445109,-500.0,0.00015473,2]
[404294549,1770041445119,-160.29154918,0.00015473,2]
[404294550,1770041445130,-500.0,0.00015473,2]
[404294551,1770041445140,-500.0,0.00015473,2]
[404294552,1770041445150,-500.0,0.00015473,2]
[404294553,1770041445159,-500.0,0.00015473,2]
[404294554,1770041445169,-500.0,0.00015473,2]
[404294555,1770041445179,-161.22024348,0.00015473,2]
[404294556,1770041445188,-500.0,0.00015473,2]
[404294557,1770041445198,-500.0,0.00015473,2]
[404294558,1770041445208,-500.0,0.00015473,2]
[404294559,1770041445220,-500.0,0.00015473,2]
[404294560,1770041445230,-500.0,0.00015473,2]
[404294561,1770041445239,-172.55407355,0.00015473,2]
[404294562,1770041445248,-500.0,0.00015473,2]
[404294563,1770041445258,-163.45412131,0.00015473,2]
[404294564,1770041445268,-500.0,0.00015473,2]
[404294565,1770041445277,-156.36625295,0.00015473,2]
[404294566,1770041445286,-500.0,0.00015473,2]
[404294567,1770041445295,-500.0,0.00015473,2]
[404294568,1770041445305,-333.70848023,0.00015473,2]
[404294569,1770041445317,-500.0,0.00015473,2]
[404294570,1770041445327,-500.0,0.00015473,2]
[404294571,1770041445336,-500.0,0.00015473,2]
[404294572,1770041445345,-160.21939493,0.00015473,2]
[404294573,1770041445356,-500.0,0.00015473,2]
[404294574,1770041445366,-208.45321153,0.00015473,2]
[404294575,1770041445377,-500.0,0.00015473,2]
[404294576,1770041445386,-182.51028613,0.00015473,2]
[404294577,1770041445396,-157.58038737,0.00015473,2]
[404294578,1770041445415,-160.23028279,0.00015473,2]
[404294579,1770041445425,-160.15877828,0.00015473,2]
[404294580,1770041445434,-210.48898828,0.00015473,2]
[404294581,1770041445444,-500.0,0.00015473,2]
[404294582,1770041445455,-500.0,0.00015473,2]
[404294584,1770041445465,-500.0,0.00015473,2]
[404294586,1770041445474,-160.06447561,0.00015473,2]
[404294587,1770041445483,-500.0,0.00015473,2]
[404294588,1770041445493,-500.0,0.00015473,2]
[404294589,1770041445502,-500.0,0.00015473,2]
[404294590,1770041445511,-166.6855616,0.00015473,2]
[404294591,1770041445521,-500.0,0.00015473,2]
[404294592,1770041445531,-500.0,0.00015473,2]
[404294593,1770041445542,-284.54369346,0.00015473,2]
[404294594,1770041445552,-500.0,0.00015473,2]
[404294595,1770041445561,-500.0,0.00015473,2]
[404294596,1770041445571,-500.0,0.00015473,2]
[404294597,1770041445580,-208.90708764,0.00015473,2]
[404294598,1770041445589,-512.5629948,0.00015473,2]
[404294599,1770041445600,-500.0,0.00015473,2]
[404294600,1770041445609,-162.17608844,0.00015473,2]
[404294601,1770041445619,-509.53769214,0.00015473,2]
[404294602,1770041445629,-500.0,0.00015473,2]
[404294603,1770041445638,-500.0,0.00015473,2]
[404294604,1770041445647,-500.0,0.00015473,2]
[404294605,1770041445656,-500.0,0.00015473,2]
[404294606,1770041445666,-309.3970797,0.00015473,2]
[404294607,1770041445676,-620.64310817,0.00015473,2]
[404294608,1770041445685,-500.0,0.00015473,2]
[404294609,1770041445694,-376.84719071,0.00015473,2]
[404294610,1770041445703,-165.99105877,0.00015473,2]
[404294611,1770041445713,-161.28515099,0.00015473,2]
[404294612,1770041445722,-161.48396035,0.00015473,2]
[404294613,1770041445732,-169.78516788,0.00015473,2]
[404294614,1770041445741,-500.0,0.00015473,2]
[404294615,1770041445750,-500.0,0.00015473,2]
[404294616,1770041445759,-500.64291995,0.00015473,2]
[404294617,1770041445769,-500.0,0.00015473,2]
[404294618,1770041445779,-500.0,0.00015473,2]
[404294619,1770041445788,-162.7403078,0.00015473,2]
[404294620,1770041445797,-164.83531024,0.00015473,2]
[404294621,1770041445807,-500.0,0.00015473,2]
[404294622,1770041445816,-500.0,0.00015473,2]
[404294623,1770041445825,-471.68773156,0.00015473,2]
[404294624,1770041445835,-500.0,0.00015473,2]
[404294625,1770041445844,-500.0,0.00015473,2]
[404294626,1770041445853,-500.0,0.00015473,2]
[404294627,1770041445863,-500.0,0.00015473,2]
[404294628,1770041445872,-773.23,0.00015473,2]
[404294629,1770041445882,-26483.7765009,0.00015479,2]
[404294630,1770041445891,-500.0,0.00015546,2]
[404294631,1770041445905,-2000.0,0.00015616,2]
[404294632,1770041445914,-1086.81924091,0.00015616,2]
[404294633,1770041445924,-2000.0,0.00015616,2]
[404294634,1770041445938,-500.0,0.00015616,2]
[404294635,1770041445948,-250.0,0.00015687,2]
[404294636,1770041445957,-786.92991262,0.00015689,2]
[404294638,1770041445966,-868.9,0.00015692,2]
[404294639,1770041445976,-159.92623365,0.00015693,2]
[404294640,1770041445985,-412.15,0.00015738,2]
[404294641,1770041445995,-773.23,0.00015747,2]
[404294642,1770041446005,-5766.41795073,0.0001577,2]
[404294643,1770041446015,-15217.66820561,0.0001577,2]
[404294645,1770041446024,-26845.77052254,0.0001577,2]
[404294646,1770041446034,-1000.0,0.00015835,2]
[404294648,1770041446043,-3292.0,0.00015946,2]
[404294649,1770041446053,-3992.56342833,0.0001596,2]
[404294650,1770041446062,-868.9,0.00015966,2]
[404294651,1770041446071,-332.57,0.00016,2]
[404294652,1770041446080,-500.0,0.0001602,2]
[404294653,1770041446090,-501.94112039,0.00016021,2]
[404294654,1770041446100,-1000.0,0.00016021,2]
[404294655,1770041446109,-1000.0,0.00016021,2]
[404294656,1770041446119,-1000.0,0.00016021,2]
[404294657,1770041446129,-1000.0,0.00016021,2]
[404294658,1770041446139,-1001.09302375,0.00016021,2]
[404294659,1770041446152,-500.94603502,0.00016021,2]
[404294660,1770041446161,-349.58747406,0.00016021,2]
[404294661,1770041446172,-1000.0,0.00016021,2]
[404294662,1770041446181,-1000.0,0.00016021,2]
[404294663,1770041446192,-1000.0,0.00016021,2]
[404294664,1770041446202,-561.0437287,0.00016021,2]
[404294665,1770041446213,-1002.28798495,0.00016021,2]
[404294666,1770041446223,-1000.0,0.00016021,2]
[404294667,1770041446232,-1000.0,0.00016021,2]
[404294668,1770041446241,-1000.0,0.00016021,2]
[404294669,1770041446251,-1000.0,0.00016021,2]
[404294670,1770041446260,-1000.0,0.00016021,2]
[404294671,1770041446270,-1000.0,0.00016021,2]
[404294672,1770041446279,-1000.0,0.00016021,2]
[404294673,1770041446288,-1000.0,0.00016021,2]
[404294674,1770041446298,-1000.0,0.00016021,2]
[404294675,1770041446307,-500.3243835,0.00016021,2]
[404294676,1770041446318,-394.34096984,0.00016021,2]
[404294677,1770041446328,-1000.0,0.00016021,2]
[404294678,1770041446339,-1000.0,0.00016021,2]
[404294679,1770041446349,-1000.0,0.00016021,2]
[404294680,1770041446358,-1000.0,0.00016021,2]
[404294681,1770041446368,-586.45296103,0.00016021,2]
[404294682,1770041446377,-501.89927416,0.00016021,2]
[404294683,1770041446386,-1000.0,0.00016021,2]
[404294684,1770041446396,-501.04094175,0.00016021,2]
[404294685,1770041446579,-1000.0,0.00016021,2]
[404294686,1770041446588,-432.98187369,0.00016021,2]
[404294687,1770041446599,-1000.0,0.00016021,2]
[404294688,1770041446608,-1000.0,0.00016021,2]
[404294689,1770041446618,-500.5035407,0.00016021,2]
[404294690,1770041446629,-1077.09353773,0.00016021,2]
[404294691,1770041446639,-1001.08336444,0.00016021,2]
[404294692,1770041446653,-1000.0,0.00016021,2]
[404294693,1770041446663,-291.61164288,0.00016021,2]
[404294694,1770041446672,-1000.0,0.00016021,2]
[404294695,1770041446681,-1000.0,0.00016021,2]
[404294696,1770041446691,-1000.0,0.00016021,2]
[404294697,1770041446700,-392.98525694,0.00016021,2]
[404294698,1770041446709,-1000.0,0.00016021,2]
[404294699,1770041446718,-500.7376913,0.00016021,2]
[404294700,1770041446728,-1000.0,0.00016021,2]
[404294701,1770041446738,-1000.0,0.00016021,2]
[404294702,1770041446747,-500.60328487,0.00016021,2]
[404294703,1770041446756,-1000.0,0.00016021,2]
[404294704,1770041446765,-1000.0,0.00016021,2]
[404294705,1770041446774,-1000.0,0.00016021,2]
[404294706,1770041446784,-1000.0,0.00016021,2]
[404294707,1770041446793,-1000.0,0.00016021,2]
[404294708,1770041446802,-773.23,0.00016021,2]
[404294709,1770041446811,-295.08,0.00016025,2]
[404294710,1770041446821,-26483.7765009,0.00016027,2]
[404294711,1770041446831,-3412.42,0.00016116,2]
[404294712,1770041446840,-305.66548204,0.00016145,2]
[404294713,1770041446849,-14479.0,0.00016161,2]
[404294714,1770041446859,-1277.64620196,0.00016164,2]
[404294715,1770041446869,-1392.5604124,0.00016164,2]
[404294716,1770041446881,-868.9,0.0001624,2]
[404294717,1770041446890,-159.92623365,0.00016253,2]
[404294718,1770041446901,-549.54,0.00016281,2]
[404294719,1770041446910,-773.23,0.00016295,2]
[404294720,1770041446919,-839.0,0.000164,2]
[404294721,1770041446929,-163.0,0.000164,2]
[404294722,1770041446937,-163.0,0.000164,2]
[404294723,1770041446947,-736.0,0.000164,2]
[404294724,1770041446956,-2307.14267202,0.00016407,2]
[404294725,1770041446965,-786.92991262,0.00016426,2]
[404294726,1770041446974,-353.05494351,0.00016437,2]
[404294727,1770041446983,-2000.0,0.00016438,2]
[404294728,1770041446993,-2142.3515787,0.00016438,2]
[404294729,1770041447002,-2142.3515787,0.00016438,2]
[404294730,1770041447011,-2142.3515787,0.00016438,2]
[404294731,1770041447020,-2142.3515787,0.00016438,2]
[404294732,1770041447029,-2142.3515787,0.00016438,2]
[404294733,1770041447038,-2142.3515787,0.00016438,2]
[404294734,1770041447047,-2142.3515787,0.00016438,2]
[404294735,1770041447057,-2142.3515787,0.00016438,2]
[404294736,1770041447066,-2142.3515787,0.00016438,2]
[404294737,1770041447075,-2142.3515787,0.00016438,2]
[404294738,1770041447084,-2142.3515787,0.00016438,2]
[404294739,1770041447093,-2142.3515787,0.00016438,2]
[404294740,1770041447102,-2142.3515787,0.00016438,2]
[404294741,1770041447111,-2142.3515787,0.00016438,2]
[404294742,1770041447119,-2142.3515787,0.00016438,2]
[404294743,1770041447128,-2142.3515787,0.00016438,2]
[404294744,1770041447137,-2142.3515787,0.00016438,2]
[404294745,1770041447146,-2142.3515787,0.00016438,2]
[404294746,1770041447158,-2142.3515787,0.00016438,2]
[404294747,1770041447167,-2142.3515787,0.00016438,2]
[404294748,1770041447177,-2142.3515787,0.00016438,2]
[404294749,1770041447186,-2142.3515787,0.00016438,2]
[404294750,1770041447195,-2142.3515787,0.00016438,2]
[404294751,1770041447205,-2142.3515787,0.00016438,2]
[404294752,1770041447215,-2142.3515787,0.00016438,2]
[404294753,1770041447224,-2142.3515787,0.00016438,2]
[404294754,1770041447233,-2142.3515787,0.00016438,2]
[404294755,1770041447243,-2142.3515787,0.00016438,2]
[404294756,1770041447254,-2142.3515787,0.00016438,2]
[404294757,1770041447263,-2142.3515787,0.00016438,2]
[404294758,1770041447273,-2142.3515787,0.00016438,2]
[404294759,1770041447282,-2142.3515787,0.00016438,2]
[404294760,1770041447291,-2142.3515787,0.00016438,2]
[404294761,1770041447301,-2142.3515787,0.00016438,2]
[404294762,1770041447310,-2142.3515787,0.00016438,2]
[404294763,1770041447324,-2142.3515787,0.00016438,2]
[404294764,1770041447333,-2142.3515787,0.00016438,2]
[404294765,1770041447342,-2142.3515787,0.00016438,2]
[404294766,1770041447351,-2142.3515787,0.00016438,2]
[404294767,1770041447361,-2142.3515787,0.00016438,2]
[404294768,1770041447370,-2142.3515787,0.00016438,2]
[404294769,1770041447379,-2142.3515787,0.00016438,2]
[404294770,1770041447389,-2142.3515787,0.00016438,2]
[404294771,1770041447398,-2142.3515787,0.00016438,2]
[404294772,1770041447408,-2142.3515787,0.00016438,2]
[404294773,1770041447417,-2142.3515787,0.00016438,2]
[404294774,1770041447426,-2142.3515787,0.00016438,2]
[404294775,1770041447435,-2142.3515787,0.00016438,2]
[404294776,1770041447444,-2142.3515787,0.00016438,2]
[404294777,1770041447453,-2142.3515787,0.00016438,2]
[404294778,1770041447462,-2142.3515787,0.00016438,2]
[404294779,1770041447472,-2142.3515787,0.00016438,2]
[404294780,1770041447481,-2142.3515787,0.00016438,2]
[404294781,1770041447490,-2142.3515787,0.00016438,2]
[404294782,1770041447499,-2142.3515787,0.00016438,2]
[404294783,1770041447508,-2142.3515787,0.00016438,2]
[404294784,1770041447517,-2142.3515787,0.00016438,2]
[404294785,1770041447526,-2142.3515787,0.00016438,2]
[404294786,1770041447535,-2142.3515787,0.00016438,2]
[404294787,1770041447544,-2142.3515787,0.00016438,2]
[404294788,1770041447553,-2142.3515787,0.00016438,2]
[404294789,1770041447562,-2142.3515787,0.00016438,2]
[404294790,1770041447571,-2134.70032306,0.00016438,2]
[404294791,1770041447580,-2134.70032306,0.00016438,2]
[404294792,1770041447589,-2134.70032306,0.00016438,2]
[404294793,1770041447598,-2134.70032306,0.00016438,2]
[404294794,1770041447607,-2134.70032306,0.00016438,2]
[404294795,1770041447615,-2134.70032306,0.00016438,2]
[404294796,1770041447624,-2134.70032306,0.00016438,2]
[404294797,1770041447633,-2134.70032306,0.00016438,2]
[404294798,1770041447642,-2134.70032306,0.00016438,2]
[404294799,1770041447652,-2134.70032306,0.00016438,2]
[404294800,1770041447662,-2134.70032306,0.00016438,2]
[404294801,1770041447671,-2134.70032306,0.00016438,2]
[404294802,1770041447680,-2134.70032306,0.00016438,2]
[404294803,1770041447689,-2134.70032306,0.00016438,2]
[404294804,1770041447698,-2134.70032306,0.00016438,2]
[404294805,1770041447707,-2134.70032306,0.00016438,2]
[404294806,1770041447716,-2134.70032306,0.00016438,2]
[404294807,1770041447725,-2134.70032306,0.00016438,2]
[404294808,1770041447734,-2134.70032306,0.00016438,2]
[404294809,1770041447743,-2134.70032306,0.00016438,2]
[404294810,1770041447752,-2134.70032306,0.00016438,2]
[404294811,1770041447761,-2134.70032306,0.00016438,2]
[404294812,1770041447770,-2134.70032306,0.00016438,2]
[404294813,1770041447779,-2134.70032306,0.00016438,2]
[404294814,1770041447789,-2134.70032306,0.00016438,2]
[404294815,1770041447798,-2134.70032306,0.00016438,2]
[404294816,1770041447807,-2134.70032306,0.00016438,2]
[404294817,1770041447816,-2134.70032306,0.00016438,2]
[404294818,1770041447826,-150.0,0.00016438,2]
[404294819,1770041447835,-800.78453244,0.00016438,2]
[404294820,1770041447845,-868.9,0.00016514,2]
[404294821,1770041447855,-1600.0,0.00016515,2]
[404294822,1770041447864,-1500.0,0.00016568,2]
[404294823,1770041447873,-503.27979337,0.00016568,2]
[404294824,1770041447883,-1500.0,0.00016568,2]
[404294825,1770041447892,-1500.0,0.00016568,2]
[404294826,1770041447905,-1004.30163313,0.00016568,2]
[404294827,1770041447915,-1500.0,0.00016568,2]
[404294828,1770041447924,-1020.51877833,0.00016568,2]
[404294829,1770041447934,-1165.40489721,0.00016568,2]
[404294830,1770041447943,-1500.0,0.00016568,2]
[404294831,1770041447953,-1345.31167706,0.00016568,2]
[404294832,1770041447962,-740.83933027,0.00016568,2]
[404294833,1770041447972,-1500.0,0.00016568,2]
[404294834,1770041447982,-503.91068608,0.00016568,2]
[404294835,1770041447992,-399.10712823,0.00016568,2]
[404294836,1770041448001,-1500.0,0.00016568,2]
[404294837,1770041448011,-1545.1454494,0.00016568,2]
[404294838,1770041448021,-1500.0,0.00016568,2]
[404294839,1770041448030,-1500.0,0.00016568,2]
[404294840,1770041448039,-1005.45817911,0.00016568,2]
[404294841,1770041448048,-1505.54193795,0.00016568,2]
[404294842,1770041448057,-1500.0,0.00016568,2]
[404294843,1770041448066,-1624.86514765,0.00016568,2]
[404294844,1770041448075,-1005.38162593,0.00016568,2]
[404294845,1770041448085,-1500.0,0.00016568,2]
[404294846,1770041448095,-761.27528148,0.00016568,2]
[404294847,1770041448105,-1003.56149344,0.00016568,2]
[404294848,1770041448114,-1500.0,0.00016568,2]
[404294849,1770041448122,-1619.84098311,0.00016568,2]
[404294850,1770041448132,-1505.24936027,0.00016568,2]
[404294851,1770041448141,-1500.0,0.00016568,2]
[404294852,1770041448153,-1500.0,0.00016568,2]
[404294853,1770041448162,-1500.0,0.00016568,2]
[404294854,1770041448172,-1504.6853335,0.00016568,2]
[404294855,1770041448182,-1500.0,0.00016568,2]
[404294856,1770041448192,-1276.88278142,0.00016568,2]
[404294857,1770041448202,-487.31307274,0.00016568,2]
[404294858,1770041448211,-773.23,0.00016569,2]
[404294859,1770041448221,-26483.7765009,0.00016574,2]
[404294860,1770041448230,-151.0,0.00016597,2]
[404294861,1770041448239,-322.6107,0.00016597,2]
[404294862,1770041448248,-209.40437684,0.00016597,2]
[404294863,1770041448258,-232.68774879,0.00016597,2]
[404294864,1770041448267,-250.0,0.00016597,2]
[404294865,1770041448277,-250.0,0.00016597,2]
[404294866,1770041448285,-250.0,0.00016597,2]
[404294867,1770041448295,-250.0,0.00016597,2]
[404294868,1770041448304,-250.0,0.00016597,2]
[404294869,1770041448313,-250.0,0.00016597,2]
[404294870,1770041448323,-250.0,0.00016597,2]
[404294871,1770041448332,-250.0,0.00016597,2]
[404294872,1770041448342,-209.40437684,0.00016597,2]
[404294873,1770041448351,-250.0,0.00016597,2]
[404294874,1770041448361,-250.0,0.00016597,2]
[404294875,1770041448370,-250.0,0.00016597,2]
[404294876,1770041448379,-500.0,0.00016597,2]
[404294877,1770041448388,-500.0,0.00016597,2]
[404294878,1770041448397,-500.0,0.00016597,2]
[404294879,1770041448409,-500.0,0.00016597,2]
[404294880,1770041448418,-174.61919141,0.00016597,2]
[404294881,1770041448428,-500.0,0.00016597,2]
[404294882,1770041448437,-500.0,0.00016597,2]
[404294883,1770041448446,-500.0,0.00016597,2]
[404294884,1770041448455,-500.0,0.00016597,2]
[404294885,1770041448464,-721.12765535,0.00016597,2]
[404294886,1770041448473,-500.0,0.00016597,2]
[404294887,1770041448483,-1428.38747117,0.00016597,2]
[404294888,1770041448492,-500.0,0.00016597,2]
[404294889,1770041448501,-859.80605061,0.00016597,2]
[404294890,1770041448510,-578.20924308,0.00016597,2]
[404294891,1770041448519,-500.0,0.00016597,2]
[404294892,1770041448528,-209.40437684,0.00016597,2]
[404294893,1770041448537,-277.35679052,0.00016597,2]
[404294894,1770041448546,-781.37908532,0.0001661,2]
[404294895,1770041448557,-217.15233878,0.00016652,2]
[404294896,1770041448566,-1000.0,0.00016684,2]
[404294897,1770041448575,-332.57,0.00016696,2]
[404294898,1770041448584,-225.18697532,0.00016707,2]
[404294899,1770041448593,-163.0,0.0001672,2]